Cogmind - Beta 11.1 @@@ ROGUE MODE // 2022.06.08 @ 04:58:21 Player: woegarden Result: Destroyed by Y-64 Sentinel with Wave Gun Performance ------------- Evolutions (4) 2000 Regions Visited (8) 1600 Robots Destroyed (1) 5 Value Destroyed (185) 185 Prototype IDs (0) 0 Alien Tech Used (0) 0 Bonus (834) 834 TOTAL SCORE: 4624 Bonus ------- Pacifist 834 Cogmind --------- Core Integrity 0/850 Matter 300/300 Energy 99/100 System Corruption 4% Temperature Cool (9) Movement Core (50) Location -6/Lower Caves Parts ------- > --- POWER (1) -------- (None) > --- PROPULSION (2) --- (None) > --- UTILITY (10) ----- (None) > --- WEAPON (2) ------- (None) > --- INVENTORY (5) ---- (None) Peak State ------------ None Favorites ----------- Power None Propulsion None Utility None Weapon None Build | -11 -10 -9 -8 -7 -7 -6 -6 -6 ------- Run | Scr Mat Mat Mat Fac Sto Fac Low Low Slots Evolved 8 | . . 2 2 2 . 2 . . Power . | . . . . . . . . . Propulsion . | . . . . . . . . . Utility 8 | . . 2 2 2 . 2 . . Weapon . | . . . . . . . . . Parts Attached . | . . . . . . . . . Power . | . . . . . . . . . Engine . | . . . . . . . . . Core . | . . . . . . . . . Reactor . | . . . . . . . . . Propulsion . | . . . . . . . . . Treads . | . . . . . . . . . Leg . | . . . . . . . . . Wheel . | . . . . . . . . . Hover . | . . . . . . . . . Flight . | . . . . . . . . . Utility . | . . . . . . . . . Device . | . . . . . . . . . Storage . | . . . . . . . . . Processor . | . . . . . . . . . Hackware . | . . . . . . . . . Protection . | . . . . . . . . . Artifact . | . . . . . . . . . Weapon . | . . . . . . . . . Energy Gun . | . . . . . . . . . Energy Cannon . | . . . . . . . . . Ballistic Gun . | . . . . . . . . . Ballistic Cannon . | . . . . . . . . . Launcher . | . . . . . . . . . Special Weapon . | . . . . . . . . . Impact Weapon . | . . . . . . . . . Slashing Weapon . | . . . . . . . . . Piercing Weapon . | . . . . . . . . . Special Melee Weapon . | . . . . . . . . . Unidentified Prototypes . | . . . . . . . . . Parts Lost . | . . . . . . . . . Power . | . . . . . . . . . Propulsion . | . . . . . . . . . Utility . | . . . . . . . . . Weapon . | . . . . . . . . . Highest Loss Streak . | . . . . . . . . . To Critical Strikes . | . . . . . . . . . Average Slot Usage (%) . | . . . . . . . . . Naked Turns 990 | . 41 123 89 139 86 58 274 180 Heaviest Build . | . . . . . . . . . Greatest Support 3 | 3 3 3 3 3 3 3 3 3 Greatest Overweight (x) . | . . . . . . . . . Average Overweight (x) . | . . . . . . . . . Largest Inventory Capacity 5 | 5 5 5 5 5 5 5 5 5 Average Capacity 5 | 5 5 5 5 5 5 5 5 5 Most Carried 4 | 4 . . . . . . . . Average Carried . | 1 . . . . . . . . Final Capacity 5 | 5 5 5 5 5 5 5 5 5 Final Carried . | . . . . . . . . . Class Distribution -------------------- 100% | Mutant Dominant Class ---------------- Mutant | -10/Materials Mutant | -9/Materials Mutant | -8/Materials Mutant | -7/Factory Mutant | -7/Storage Mutant | -6/Factory Mutant | -6/Lower Caves Mutant | -6/Lower Caves Resources | -11 -10 -9 -8 -7 -7 -6 -6 -6 ----------- Run | Scr Mat Mat Mat Fac Sto Fac Low Low Matter Collected 212 | 200 . . . . . . 7 5 Remotely . | . . . . . . . . . Salvage Created 16 | . . . . . 16 . . . Parts 3 | . . . . . 3 . . . Haulers Intercepted . | . . . . . . . . . Recyclers Shooed . | . . . . . . . . . Parts Field Recycled . | . . . . . . . . . Retrieved Matter . | . . . . . . . . . Parts Self-Destructed 5 | . . . . . . . 3 2 Prevented 2 | . . . . . . . . 2 Kills | -11 -10 -9 -8 -7 -7 -6 -6 -6 ------- Run | Scr Mat Mat Mat Fac Sto Fac Low Low Combat Hostiles Destroyed . | . . . . . . . . . Classes Destroyed 1 | . . . . . 1 . . . Builder 1 | . . . . . 1 . . . Best Kill Streak 1 | . . . . . 1 . . . Combat Bots Only . | . . . . . . . . . Max Kills in Single Turn 1 | . . . . . 1 . . . Gunslinging . | . . . . . . . . . Exploded . | . . . . . . . . . Melee . | . . . . . . . . . Uniques/NPCs Destroyed . | . . . . . . . . . Combat | -11 -10 -9 -8 -7 -7 -6 -6 -6 -------- Run | Scr Mat Mat Mat Fac Sto Fac Low Low Damage Taken 1812 | . . 377 317 2 254 . 199 663 Core 1812 | . . 377 317 2 254 . 199 663 Absorbed by Shields . | . . . . . . . . . Core Remaining (%) 62 | 100 100 5 42 . 63 . . . Volleys Fired . | . . . . . . . . . Largest . | . . . . . . . . . Hottest . | . . . . . . . . . Shots Fired . | . . . . . . . . . Gun . | . . . . . . . . . Cannon . | . . . . . . . . . Launcher . | . . . . . . . . . Special . | . . . . . . . . . Kinetic . | . . . . . . . . . Thermal . | . . . . . . . . . Explosive . | . . . . . . . . . Electromagnetic . | . . . . . . . . . Robot Hit Streak . | . . . . . . . . . Robot Miss Streak . | . . . . . . . . . Penetration Max . | . . . . . . . . . Secondary Targets . | . . . . . . . . . Shots Hit Robots . | . . . . . . . . . Core Hits 4 | . . 3 . . 1 . . . Critical Kills . | . . . . . . . . . Critical Parts Destroyed . | . . . . . . . . . Critical Strikes . | . . . . . . . . . Melee Attacks . | . . . . . . . . . Impact . | . . . . . . . . . Slashing . | . . . . . . . . . Piercing . | . . . . . . . . . Sneak Attacks . | . . . . . . . . . Combat Hostiles . | . . . . . . . . . Follow-up Attacks . | . . . . . . . . . Damage Inflicted 102 | . . 46 28 6 22 . . . Guns . | . . . . . . . . . Cannons . | . . . . . . . . . Explosions . | . . . . . . . . . Melee . | . . . . . . . . . Ramming 102 | . . 46 28 6 22 . . . Kinetic . | . . . . . . . . . Thermal . | . . . . . . . . . Explosive . | . . . . . . . . . Electromagnetic . | . . . . . . . . . Impact . | . . . . . . . . . Slashing . | . . . . . . . . . Piercing . | . . . . . . . . . Highest Corruption 4 | . . . . . 2 4 4 4 Average Corruption 3 | . . . . . 2 3 4 4 Corruption Purged . | . . . . . . . . . Corruption Blocked . | . . . . . . . . . Effects 6 | . . . . . . . 3 3 Message Errors 2 | . . . . . . . 1 1 Matter Fused 2 | . . . . . . . 1 1 Energy Discharges 1 | . . . . . . . . 1 Data Loss (minor) 1 | . . . . . . . 1 . Overload Shots . | . . . . . . . . . Overflow Damage . | . . . . . . . . . Projectiles . | . . . . . . . . . Explosions . | . . . . . . . . . Melee . | . . . . . . . . . Knockbacks . | . . . . . . . . . Impact . | . . . . . . . . . Kinetic . | . . . . . . . . . Secondary . | . . . . . . . . . Self-Inflicted Damage 45 | . . 19 14 2 10 . . . Shots . | . . . . . . . . . Rammed 28 | . . 20 3 2 3 . . . Targets Rammed 28 | . . 20 3 2 3 . . . Kicked . | . . . . . . . . . Crushed . | . . . . . . . . . Highest Temperature . | . . . . . . . . . Average Temperature . | . . . . . . . . . Received Heat Transfer 480 | . . 144 . . 117 . 18 201 Siege Activations . | . . . . . . . . . Robots Corrupted . | . . . . . . . . . Combat Hostiles . | . . . . . . . . . Parts Fried . | . . . . . . . . . Impact Corruptions . | . . . . . . . . . Robots Melted . | . . . . . . . . . Combat Hostiles . | . . . . . . . . . Parts Melted . | . . . . . . . . . Heat Transferred . | . . . . . . . . . Parts Sabotaged . | . . . . . . . . . Parts Stolen . | . . . . . . . . . Parts Stripped . | . . . . . . . . . Power Chain Reactions . | . . . . . . . . . Missiles Intercepted . | . . . . . . . . . Alert | -11 -10 -9 -8 -7 -7 -6 -6 -6 ------- Run | Scr Mat Mat Mat Fac Sto Fac Low Low Peak Influence 408 | . . 255 122 408 280 142 . . Initial 185 | . . . 107 55 185 127 . . Average 157 | . . 90 108 263 232 134 . . Maximum Alert Level 2 | . . 1 . 2 1 . . . Low Security (%) 71 | 100 100 86 100 42 31 100 . . Level 1 15 | . . 13 . 4 68 . . . Level 2 13 | . . . . 53 . . . . Level 3 . | . . . . . . . . . Level 4 . | . . . . . . . . . Level 5 . | . . . . . . . . . High Security . | . . . . . . . . . Max Security . | . . . . . . . . . Squads Dispatched 2 | . . 1 . . . 1 . . Investigation . | . . . . . . . . . Extermination . | . . . . . . . . . Reinforcement 2 | . . 1 . . . 1 . . Assault . | . . . . . . . . . Garrison . | . . . . . . . . . Intercept . | . . . . . . . . . Searches Triggered . | . . . . . . . . . Construction Impeded . | . . . . . . . . . Haulers Reinforced . | . . . . . . . . . Active Scanning Responses . | . . . . . . . . . Cargo Convoy Interrupts . | . . . . . . . . . Stealth | -11 -10 -9 -8 -7 -7 -6 -6 -6 --------- Run | Scr Mat Mat Mat Fac Sto Fac Low Low Distress Signals 4 | . . 2 . . 2 . . . Communications Jammed . | . . . . . . . . . Distress Signals . | . . . . . . . . . Times Spotted 61 | . 3 12 7 1 12 2 12 12 Peak Tracking Total 17 | . 5 17 5 1 8 1 4 7 Tactical Retreats 9 | . . 2 . . 2 . 2 3 Traps | -11 -10 -9 -8 -7 -7 -6 -6 -6 ------- Run | Scr Mat Mat Mat Fac Sto Fac Low Low Traps Triggered 4 | . . . . 1 1 2 . . Indirectly . | . . . . . . . . . Trap Hack Attempts . | . . . . . . . . . Triggered . | . . . . . . . . . Disarmed . | . . . . . . . . . Reprogrammed . | . . . . . . . . . Reused . | . . . . . . . . . Traps Extracted . | . . . . . . . . . Installed . | . . . . . . . . . Triggered . | . . . . . . . . . Machines | -11 -10 -9 -8 -7 -7 -6 -6 -6 ---------- Run | Scr Mat Mat Mat Fac Sto Fac Low Low Machines Disabled 18 | . . . . 18 . . . . Max in Single Turn . | . . . . . . . . . Machines Sabotaged . | . . . . . . . . . Garrisons Compromised . | . . . . . . . . . Overloaded Fab Kills . | . . . . . . . . . Hacking | -11 -10 -9 -8 -7 -7 -6 -6 -6 --------- Run | Scr Mat Mat Mat Fac Sto Fac Low Low Machines Accessed . | . . . . . . . . . Terminals . | . . . . . . . . . Fabricators . | . . . . . . . . . Repair Stations . | . . . . . . . . . Recycling Units . | . . . . . . . . . Scanalyzers . | . . . . . . . . . Garrison Access . | . . . . . . . . . Total Hacks . | . . . . . . . . . Successful . | . . . . . . . . . Failed . | . . . . . . . . . Catastrophic . | . . . . . . . . . Database Lockouts . | . . . . . . . . . Manual . | . . . . . . . . . Terminals . | . . . . . . . . . Fabricators . | . . . . . . . . . Repair Stations . | . . . . . . . . . Recycling Units . | . . . . . . . . . Scanalyzers . | . . . . . . . . . Garrison Access . | . . . . . . . . . Terminal Hacks . | . . . . . . . . . Fabricator Hacks . | . . . . . . . . . Repair Station Hacks . | . . . . . . . . . Recycling Unit Hacks . | . . . . . . . . . Scanalyzer . | . . . . . . . . . Garrison Access Hacks . | . . . . . . . . . Unauthorized Hacks . | . . . . . . . . . Terminals . | . . . . . . . . . Fabricators . | . . . . . . . . . Repair Stations . | . . . . . . . . . Recycling Units . | . . . . . . . . . Scanalyzers . | . . . . . . . . . Garrison Access . | . . . . . . . . . Data Cores Recovered . | . . . . . . . . . Used . | . . . . . . . . . Hacking Detections . | . . . . . . . . . Full Trace Events . | . . . . . . . . . Feedback Events . | . . . . . . . . . Feedback Blocked . | . . . . . . . . . Robot Schematics Acquired . | . . . . . . . . . Robots Built . | . . . . . . . . . Authchips . | . . . . . . . . . Time . | . . . . . . . . . Total Robot Build Rating . | . . . . . . . . . Part Schematics Acquired . | . . . . . . . . . Parts Built . | . . . . . . . . . Authchips . | . . . . . . . . . Time . | . . . . . . . . . Total Part Build Rating . | . . . . . . . . . Parts Repaired . | . . . . . . . . . Time . | . . . . . . . . . Parts Recycled . | . . . . . . . . . Recycled Matter . | . . . . . . . . . Retrieved Matter . | . . . . . . . . . Retrieved Components . | . . . . . . . . . Parts Scanalyzed . | . . . . . . . . . Part Schematics Acquired . | . . . . . . . . . Parts Damaged . | . . . . . . . . . Bothacking | -11 -10 -9 -8 -7 -7 -6 -6 -6 ------------ Run | Scr Mat Mat Mat Fac Sto Fac Low Low Used RIF Installer . | . . . . . . . . . Robots Hacked . | . . . . . . . . . Non-combat . | . . . . . . . . . Combat . | . . . . . . . . . Robot Hacks Applied . | . . . . . . . . . Relay Couplers Released . | . . . . . . . . . Fabnet Peak Effective % . | . . . . . . . . . Robots Rewired 1 | . . . . 1 . . . . Allies Hacked . | . . . . . . . . . Hacks Repelled . | . . . . . . . . . Allies | -11 -10 -9 -8 -7 -7 -6 -6 -6 -------- Run | Scr Mat Mat Mat Fac Sto Fac Low Low Total Allies 1 | . . . . 1 . . . . Largest Group 1 | . . . . 1 1 . . . Highest-Rated Group 32 | . . . . 32 29 . . . Highest-Rated Ally 32 | . . . . 32 29 . . . Total Orders . | . . . . . . . . . Ally Attacks 2 | . . . . 2 . . . . Total Damage 536 | . . . . 536 . . . . Kills 3 | . . . . 3 . . . . Allies Corrupted . | . . . . . . . . . Allies Melted . | . . . . . . . . . Intel | -11 -10 -9 -8 -7 -7 -6 -6 -6 ------- Run | Scr Mat Mat Mat Fac Sto Fac Low Low Robot Analysis Total . | . . . . . . . . . Derelict Logs Recovered 4 | . . . . . . . 1 3 Drone Launches . | . . . . . . . . . Drone Recoveries . | . . . . . . . . . Exploration | -11 -10 -9 -8 -7 -7 -6 -6 -6 ------------- Run | Scr Mat Mat Mat Fac Sto Fac Low Low Turns Passed 994 | 4 41 123 89 139 86 58 274 180 Spaces Moved 1671 | 3 82 205 171 127 166 116 442 359 Core 1671 | 3 82 205 171 127 166 116 442 359 Treads . | . . . . . . . . . Legs . | . . . . . . . . . Wheels . | . . . . . . . . . Hover . | . . . . . . . . . Flight . | . . . . . . . . . Fastest Speed 50 | 50 50 50 50 50 50 50 50 50 Average Speed 50 | 50 50 50 50 50 50 50 50 50 Slowest Speed 50 | 50 50 50 50 50 50 50 50 50 Overloaded Moves . | . . . . . . . . . Propulsion Burnouts . | . . . . . . . . . Robots Hopped . | . . . . . . . . . Cave-ins Triggered . | . . . . . . . . . Exploration Rate (%) 27 | 1 18 35 30 5 42 5 66 49 Regions Visited 8 Branch Regions 3 Pre-discovered Areas . | . . . . . . . . . Known Exits Taken . | . . . . . . . . . Unknown Exits Taken 8 | 1 1 1 1 1 1 1 1 . Scrap Searched 1 | . . . . . . . 1 . Spaces Dug . | . . . . . . . . . Terrain Destroyed . | . . . . . . . . . Melee . | . . . . . . . . . Projectile . | . . . . . . . . . AOE . | . . . . . . . . . Terrain Rammed . | . . . . . . . . . Walls Destroyed . | . . . . . . . . . Machines Disabled . | . . . . . . . . . Actions | -11 -10 -9 -8 -7 -7 -6 -6 -6 --------- Run | Scr Mat Mat Mat Fac Sto Fac Low Low Total 1822 | 7 81 224 173 201 168 115 494 359 Wait 115 | . . . . 62 . . 53 . Move 1663 | 2 81 204 170 126 165 115 441 359 Hop . | . . . . . . . . . Pick Up . | . . . . . . . . . Fast Attach . | . . . . . . . . . Attach . | . . . . . . . . . Detach . | . . . . . . . . . Swap . | . . . . . . . . . Drop 5 | 5 . . . . . . . . Fire . | . . . . . . . . . Melee . | . . . . . . . . . Ram 28 | . . 20 3 2 3 . . . Kick . | . . . . . . . . . Crush . | . . . . . . . . . Escape Stasis . | . . . . . . . . . Rewire 11 | . . . . 11 . . . . Trap . | . . . . . . . . . Miscellaneous . | . . . . . . . . . Route ------- -11/Scrapyard -10/Materials -9/Materials -8/Materials -7/Factory (discovered 2 exits: [*Sto] / [*Low]) -7/Storage -6/Factory -6/Lower Caves -6/Lower Caves History --------- Turn | Location | Event 1 | -11/Scrapyard | Released all parts (6) 4 | -11/Scrapyard | Discovered new exit (range 0) 5 | -11/Scrapyard | Entered Materials 43 | -10/Materials | Discovered new exit (range 7) 46 | -10/Materials | Entered another Materials area 46 | -9/Materials | Evolved 2 slots: Utility x2 106 | -9/Materials | Core integrity fell below 50% 157 | -9/Materials | Core integrity fell below 20% 160 | -9/Materials | Discovered new exit (range 16) 169 | -9/Materials | Entered another Materials area 169 | -8/Materials | Evolved 2 slots: Utility x2 248 | -8/Materials | Core integrity fell below 50% 256 | -8/Materials | Discovered new exit (range 4) 258 | -8/Materials | Entered Factory 258 | -7/Factory | Evolved 2 slots: Utility x2 310 | -7/Factory | Build established: Mutant 325 | -7/Factory | Discovered new exit (range 16) 332 | -7/Factory | Discovered new exit (range 16) 397 | -7/Factory | Entered Storage 397 | -7/Storage | Accompanied by 1 ally 476 | -7/Storage | Discovered new exit (range 15) 483 | -7/Storage | Entered Factory 483 | -6/Factory | Evolved 2 slots: Utility x2 536 | -6/Factory | Discovered new exit (range 11) 541 | -6/Factory | Entered Lower Caves 544 | -6/Lower Caves | Learned Factory terminal intel 556 | -6/Lower Caves | Attracted the attention of an 0b10 base 652 | -6/Lower Caves | Encountered a Warlord checkpoint 811 | -6/Lower Caves | Discovered new exit (range 7) 815 | -6/Lower Caves | Entered another Lower Caves area 831 | -6/Lower Caves | Learned Factory garrison access intel 911 | -6/Lower Caves | Learned Factory trap positions 915 | -6/Lower Caves | Attracted the attention of an 0b10 base 935 | -6/Lower Caves | Core integrity fell below 50% 943 | -6/Lower Caves | Encountered a Warlord checkpoint 943 | -6/Lower Caves | Core integrity fell below 20% 951 | -6/Lower Caves | Learned Factory terminal intel 995 | -6/Lower Caves | Destroyed by Y-64 Sentinel with Wave Gun Last Messages --------------- 00926_ System corrupted: Energy discharge (-21). 00943_ 42-2QN(M): "We're here to intercept Unaware patrols. Move along before you get yourself shot." 00951_ Acquired derelict log, extracted data. Data stored: Factory terminal intel. 00959_ G-50 Soldier suffers critical hit (Smash). 00959_ G-50 Soldier system corrupted by crushing effect. 00963_ Adv. Heat Sink fries itself beyond repair. 00968_ ML-LCX(b) suffers critical hit (Burn). 00968_ Slug penetrates G-50 Soldier. 00968_ G-50 Soldier destroyed. 00970_ Corrupted Carbon-fiber Leg self-destruct mechanism malfunctions. 00970_ Corrupted Hvy. Laser self-destruct mechanism malfunctions. 00971_ Slug penetrates ML-LCX(b). 00971_ ML-LCX(b) destroyed. 00974_ Penetrated by Slug. 00989_ Slug penetrates Wall. 00992_ H :7